bitfinex-derivatives/quotes_BTCF0:USTF0_20250929
["timestamp","ask_amount","ask_price","bid_price","bid_amount"]
[1759109237033,1.23327144,112210.0,112200.0,0.62612518]
[1759109237949,1.23327144,112210.0,112200.0,0.63944518]
[1759109238639,1.23327144,112210.0,112200.0,0.62612518]
[1759109241245,1.32234804,112210.0,112200.0,0.1113646]
[1759109241447,1.57973108,112210.0,112200.0,0.0890846]
[1759109241750,1.57973108,112210.0,112200.0,0.34646764]
[1759109242653,0.1234846,112200.0,112190.0,0.1105072]
[1759109242857,0.76340908,112200.0,112190.0,0.36789024]
[1759109243353,0.50602604,112200.0,112190.0,0.36789024]
[1759109244254,0.50602604,112200.0,112190.0,0.37089024]
[1759109244953,0.50602604,112200.0,112190.0,0.37389024]
[1759109248259,1.32050604,112200.0,112190.0,0.37389024]
[1759109248552,0.50602604,112200.0,112190.0,0.37389024]
[1759109248763,1.32050604,112200.0,112190.0,0.37389024]
[1759109253058,0.50602604,112200.0,112190.0,0.37389024]
[1759109253351,1.32050604,112200.0,112190.0,0.37389024]
[1759109254459,1.32921728,112200.0,112190.0,0.37389024]
[1759109254755,1.32050604,112200.0,112190.0,0.37389024]
[1759109255949,1.57788908,112200.0,112190.0,0.28480304]
[1759109256157,1.57788908,112200.0,112190.0,0.26338304]
[1759109256559,1.57788908,112200.0,112190.0,0.35247554]
[1759109257359,1.57788908,112200.0,112190.0,0.37389554]
[1759109258561,1.58695119,112200.0,112190.0,0.37389554]
[1759109259252,1.58695119,112200.0,112190.0,0.35247554]
[1759109262661,1.32050604,112200.0,112190.0,0.37389554]
[1759109262862,1.57788908,112200.0,112190.0,0.37389554]
[1759109263864,1.57784908,112200.0,112190.0,0.37389554]
[1759109264065,1.32046604,112200.0,112190.0,0.37389554]
[1759109264264,1.57784908,112200.0,112190.0,0.37389554]
[1759109264666,0.50602604,112200.0,112190.0,0.37389554]
[1759109264862,1.57784908,112200.0,112190.0,0.37389554]
[1759109268062,1.57784908,112200.0,112190.0,0.35247554]
[1759109269663,1.57784908,112200.0,112190.0,0.006]
[1759109269664,1.59885093,112200.0,112190.0,0.006]
[1759109269855,2.25623397,112200.0,112190.0,0.006]
[1759109270058,1.89543397,112200.0,112190.0,0.006]
[1759109270261,2.64909415,112200.0,112190.0,0.006]
[1759109270663,0.03457,112180.0,112170.0,0.34648814]
[1759109270862,1.49537448,112180.0,112170.0,0.36897814]
[1759109271063,1.23799144,112180.0,112170.0,0.36897814]
[1759109271665,1.23809497,112180.0,112170.0,0.36897814]
[1759109271862,1.23809497,112180.0,112170.0,0.37497814]
[1759109272166,1.32719537,112180.0,112170.0,0.1175951]
[1759109272364,1.41954169,112180.0,112170.0,0.006]
[1759109272759,1.67692473,112180.0,112170.0,0.26338304]
[1759109272961,1.67692473,112180.0,112170.0,0.27138304]
[1759109272962,1.41954169,112180.0,112170.0,0.27138304]
[1759109273156,2.03772473,112180.0,112170.0,0.014]
[1759109273369,2.29510777,112180.0,112170.0,0.014]
[1759109273566,2.03772473,112180.0,112170.0,0.014]
[1759109273774,2.03772473,112180.0,112170.0,0.011]
[1759109274067,2.03776826,112180.0,112170.0,0.009]
[1759109275570,2.18038522,112180.0,112170.0,0.009]
[1759109275765,2.6951513,112180.0,112170.0,0.009]
[1759109276568,2.18038522,112180.0,112170.0,0.009]
[1759109276872,2.6951513,112180.0,112170.0,0.009]
[1759109278969,1.8742713,112180.0,112170.0,0.009]
[1759109279274,2.18878522,112180.0,112170.0,0.009]
[1759109279574,2.7035513,112180.0,112170.0,0.009]
[1759109280674,2.70411395,112180.0,112170.0,0.009]
[1759109280876,1.87483395,112180.0,112170.0,0.009]
[1759109281076,2.70415395,112180.0,112170.0,0.009]
[1759109282075,0.1236861,112160.0,112150.0,0.34650704]
[1759109282278,1.57136726,112160.0,112150.0,0.34650704]
[1759109282576,1.31398422,112160.0,112150.0,0.36899704]
[1759109283377,1.31398422,112160.0,112150.0,0.37999704]
[1759109283877,1.31398422,112160.0,112150.0,0.38699704]
[1759109284676,0.39546812,112160.0,112150.0,0.38699704]
[1759109284976,1.22510812,112160.0,112150.0,0.38699704]
[1759109285177,0.39546812,112160.0,112150.0,0.38699704]
[1759109285370,1.22518812,112160.0,112150.0,0.38699704]
[1759109286376,1.31438422,112160.0,112150.0,0.38699704]
[1759109287377,1.31438422,112160.0,112150.0,0.129614]
[1759109287579,1.31438422,112160.0,112150.0,0.38699704]
[1759109287770,1.31454422,112160.0,112150.0,0.38699704]
[1759109288779,0.48458422,112160.0,112150.0,0.38699704]
[1759109288980,1.31462422,112160.0,112150.0,0.38699704]
[1759109289180,0.48458422,112160.0,112150.0,0.38699704]
[1759109289480,1.31466422,112160.0,112150.0,0.38699704]
[1759109289679,1.22554812,112160.0,112150.0,0.38699704]
[1759109290382,1.22554812,112160.0,112150.0,0.129614]
[1759109290585,1.31466422,112160.0,112150.0,0.38724481]
[1759109290876,1.31466422,112160.0,112150.0,0.018]
[1759109291081,1.31466422,112160.0,112150.0,0.29812081]
[1759109291282,1.22554812,112160.0,112150.0,0.38724481]
[1759109293783,1.22542812,112160.0,112150.0,0.38724481]
[1759109293985,1.21234812,112160.0,112150.0,0.80098481]
[1759109294373,1.21250812,112160.0,112150.0,0.80098481]
[1759109298587,0.38262812,112160.0,112150.0,0.80098481]
[1759109298887,1.21238812,112160.0,112150.0,0.80098481]
[1759109299777,1.93343503,112160.0,112150.0,0.107124]
[1759109300783,1.93343503,112160.0,112150.0,0.100124]
[1759109301087,1.93343503,112160.0,112150.0,0.103124]
[1759109301484,1.93343503,112160.0,112150.0,0.095124]
[1759109302392,1.95581149,112160.0,112150.0,0.095124]
[1759109303989,1.69818068,112160.0,112150.0,0.006]
[1759109304192,0.0135,112130.0,112120.0,0.08921517]
[1759109304400,1.2499403,112130.0,112120.0,0.11080517]
[1759109304893,1.3390802,112130.0,112120.0,0.36843598]
[1759109305288,1.3390802,112130.0,112120.0,0.38043598]
[1759109305795,1.3390802,112130.0,112120.0,0.38743598]
[1759109305994,1.3390802,112130.0,112120.0,0.37543598]
[1759109306196,1.41215876,112130.0,112120.0,0.38143598]
[1759109306695,1.41215876,112130.0,112120.0,0.39529598]
[1759109306896,0.49205886,112130.0,112120.0,0.13766517]
[1759109307194,1.30987886,112130.0,112120.0,0.39529598]
[1759109307394,1.30987886,112130.0,112120.0,0.39229598]
[1759109308485,1.67014957,112130.0,112120.0,0.03166107]
[1759109308690,1.67014957,112130.0,112120.0,0.12080897]
[1759109309695,1.41375876,112130.0,112120.0,0.12080897]
[1759109309897,1.41375876,112130.0,112120.0,0.11480897]
[1759109310096,1.41375876,112130.0,112120.0,0.37443978]
[1759109310496,1.41375876,112130.0,112120.0,0.37243978]
[1759109312396,0.58119876,112130.0,112120.0,0.38629978]
[1759109312601,1.32437886,112130.0,112120.0,0.38629978]
[1759109312910,1.41351876,112130.0,112120.0,0.38629978]
[1759109313105,1.41351876,112130.0,112120.0,0.28329188]
[1759109313609,1.41351876,112130.0,112120.0,0.02566107]
[1759109313808,1.41351876,112130.0,112120.0,0.28329188]
[1759109317600,1.67114957,112130.0,112120.0,0.00407107]
[1759109319412,1.67238957,112130.0,112120.0,0.02566107]
[1759109320299,1.67226957,112130.0,112120.0,0.02366107]
[1759109320702,1.67326957,112130.0,112120.0,0.02166107]
[1759109321202,2.07326957,112130.0,112120.0,7.107e-05]
[1759109321406,2.07302957,112130.0,112120.0,7.107e-05]
[1759109321807,1.67302957,112130.0,112120.0,7.107e-05]
[1759109327412,1.81539876,112130.0,112120.0,7.107e-05]
[1759109327621,2.07302957,112130.0,112120.0,7.107e-05]
[1759109329819,2.07302957,112130.0,112090.0,0.36974479]
[1759109329820,0.1245038,112100.0,112090.0,0.38382951]
[1759109330019,0.9579438,112100.0,112090.0,0.38382951]
[1759109330212,0.97982262,112100.0,112090.0,0.38382951]
[1759109330610,1.57637461,112100.0,112090.0,0.03703]
[1759109330814,1.34074743,112100.0,112090.0,0.28080081]
[1759109331222,1.34074743,112100.0,112090.0,0.28880081]
[1759109331516,1.34074743,112100.0,112090.0,0.37797261]
[1759109332222,1.34054743,112100.0,112090.0,0.38397261]
[1759109332921,0.50730743,112100.0,112090.0,0.1382718]
[1759109333121,1.34058743,112100.0,112090.0,0.39590261]
[1759109333420,1.34058743,112100.0,112090.0,0.39290261]
[1759109333813,1.34050743,112100.0,112090.0,0.1213418]
[1759109334017,1.34050743,112100.0,112090.0,0.39290261]
[1759109334220,1.34038743,112100.0,112090.0,0.39290261]
[1759109335220,1.34030743,112100.0,112090.0,0.39290261]
[1759109335723,1.25114363,112100.0,112090.0,0.39290261]
[1759109335920,0.41814363,112100.0,112090.0,0.39290261]
[1759109336120,1.25098363,112100.0,112090.0,0.39290261]
[1759109336922,0.41814363,112100.0,112090.0,0.39290261]
[1759109337116,1.23787363,112100.0,112090.0,0.39290261]
[1759109337317,0.40499363,112100.0,112090.0,0.39290261]
[1759109337521,1.23779363,112100.0,112090.0,0.39290261]
[1759109338725,1.23787363,112100.0,112090.0,0.39290261]
[1759109339123,0.40499363,112100.0,112090.0,0.39290261]
[1759109339415,0.02200363,112100.0,112090.0,0.79290261]
[1759109339618,0.02200363,112100.0,112090.0,1.15370261]
[1759109346024,0.02200363,112100.0,112090.0,1.33290261]
[1759109346219,0.02200363,112100.0,112090.0,0.97210261]
[1759109346526,0.04419363,112100.0,112090.0,0.57210261]
[1759109347024,0.04419363,112100.0,112090.0,0.97210261]
[1759109351530,1.16493844,112100.0,112090.0,0.03217]
[1759109351732,1.19699862,112100.0,112090.0,0.009]
[1759109351936,1.24484829,112100.0,112090.0,0.03062]
[1759109352126,1.24485386,112100.0,112090.0,0.03062]
[1759109352327,1.24517732,112100.0,112090.0,0.28857427]
[1759109352730,1.24517732,112100.0,112090.0,0.28357427]
[1759109354232,1.19732765,112100.0,112090.0,0.28357427]
[1759109356338,1.19732765,112100.0,112090.0,0.02562]
[1759109356535,1.19732765,112100.0,112090.0,0.28357427]
[1759109357136,2.03076765,112100.0,112090.0,0.28357427]
[1759109358644,1.19732765,112100.0,112090.0,0.28357427]
[1759109358842,2.03068765,112100.0,112090.0,0.28357427]
[1759109359454,1.19732765,112100.0,112090.0,0.28357427]
[1759109359745,2.03040765,112100.0,112090.0,0.28357427]
[1759109361047,1.19732765,112100.0,112090.0,0.28357427]
[1759109361241,2.03032765,112100.0,112090.0,0.28357427]
[1759109361544,1.9982619,112100.0,112090.0,0.28357427]
[1759109361739,1.9978619,112100.0,112090.0,0.28357427]
[1759109362747,1.9978619,112100.0,112090.0,0.004]
[1759109362939,1.9978619,112100.0,112090.0,0.26195427]
[1759109363135,1.9978619,112100.0,112090.0,0.28393427]
[1759109364046,0.90730763,112100.0,112090.0,0.28393427]
[1759109364345,0.90730763,112100.0,112090.0,0.37310617]
[1759109364346,1.1652619,112100.0,112090.0,0.37310617]
[1759109364546,0.50730763,112100.0,112090.0,0.38615617]
[1759109364747,1.33938763,112100.0,112090.0,0.38615617]
[1759109365649,1.32619763,112100.0,112090.0,0.38615617]
[1759109366648,0.40499363,112100.0,112090.0,0.38615617]
[1759109366947,1.32595763,112100.0,112090.0,0.64411044]
[1759109367740,0.87583363,112100.0,112090.0,0.64411044]
[1759109370257,0.04419363,112100.0,112090.0,0.64411044]
[1759109373050,0.02200363,112100.0,112090.0,1.04411044]
[1759109373450,0.00011478,112100.0,112090.0,1.04411044]
[1759109376358,0.02199178,112100.0,112090.0,1.04411044]
[1759109378857,0.04521178,112100.0,112090.0,1.04411044]
[1759109379361,0.04521178,112100.0,112090.0,1.03452263]
[1759109379657,0.04521178,112100.0,112090.0,0.63452263]
[1759109379851,0.40601178,112100.0,112090.0,0.63452263]
[1759109390357,0.04521178,112100.0,112090.0,0.63452263]
[1759109390561,0.40601178,112100.0,112090.0,0.63452263]
[1759109391974,0.04521178,112100.0,112090.0,0.63452263]
[1759109392770,0.04521178,112100.0,112090.0,0.11861409]
[1759109392970,0.04521178,112100.0,112090.0,0.63452263]
[1759109401374,0.04521178,112100.0,112090.0,1.46104263]
[1759109402577,0.04521178,112100.0,112090.0,1.82184263]
[1759109402779,0.04521178,112100.0,112090.0,1.30593409]
[1759109402975,0.02199178,112100.0,112090.0,1.82184263]
[1759109403283,0.05521575,112120.0,112110.0,0.124216]
[1759109403478,0.43699118,112130.0,112120.0,0.124208]
[1759109403678,0.43699118,112130.0,112120.0,0.64011654]
[1759109404376,0.40499973,112130.0,112120.0,0.64011654]
[1759109404571,0.40899973,112130.0,112120.0,0.64011654]
[1759109404984,0.3880243,112130.0,112120.0,0.64011654]
[1759109405578,0.3880243,112130.0,112120.0,0.64915531]
[1759109405779,0.3880243,112130.0,112120.0,0.90710958]
[1759109405780,0.0342243,112130.0,112120.0,0.90710958]
[1759109406186,0.0342243,112130.0,112120.0,0.64915531]
[1759109406788,0.0342243,112130.0,112120.0,1.47507531]
[1759109407091,0.0110743,112130.0,112120.0,1.73302958]
[1759109408293,0.0110743,112130.0,112120.0,1.73298958]
[1759109409496,0.0110743,112130.0,112120.0,1.73274958]
[1759109409794,0.0110743,112130.0,112120.0,0.90710958]
[1759109409988,0.0110743,112130.0,112120.0,0.13324677]
[1759109409989,0.0342243,112130.0,112120.0,0.13324677]
[1759109410291,0.0342243,112130.0,112120.0,1.47475531]
[1759109410693,0.0342243,112130.0,112120.0,0.64915531]
[1759109410890,0.0342243,112130.0,112120.0,1.47495531]
[1759109411595,0.0110743,112130.0,112120.0,0.64915531]
[1759109412097,0.0342243,112130.0,112120.0,1.47491531]
[1759109412394,0.0342243,112130.0,112120.0,1.21671602]
[1759109414593,0.0110743,112130.0,112120.0,1.21671602]
[1759109415592,0.1232546,112130.0,112120.0,0.38191725]
[1759109415789,1.1766952,112130.0,112120.0,0.111358]
[1759109415996,1.1766952,112130.0,112120.0,0.02221]
[1759109416201,1.1766952,112130.0,112120.0,0.1113582]
[1759109416497,0.91898595,112130.0,112120.0,0.36906745]
[1759109416698,0.92814102,112130.0,112120.0,0.36906745]
[1759109416891,1.75334102,112130.0,112120.0,0.27991925]
[1759109417292,1.75334102,112130.0,112120.0,0.36906745]
[1759109417897,1.75334102,112130.0,112120.0,0.1113582]
[1759109419199,0.1021382,112120.0,112110.0,0.1108614]
[1759109419397,0.50729955,112120.0,112110.0,0.36857065]
[1759109419597,0.50729955,112120.0,112110.0,0.1108614]
[1759109419798,0.50729955,112120.0,112110.0,0.36857065]
[1759109420299,0.1248162,112110.0,112100.0,0.38142765]
[1759109420505,0.50730755,112110.0,112100.0,0.38142765]
[1759109422002,0.50930755,112110.0,112100.0,0.38142765]
[1759109424109,0.50930755,112110.0,112100.0,0.36857765]
[1759109424505,0.50930755,112110.0,112100.0,0.02171]
[1759109424711,0.1248241,112100.0,112090.0,0.36858725]
[1759109424912,0.1248241,112100.0,112090.0,0.110878]
[1759109425211,0.1248241,112100.0,112090.0,0.36858725]
[1759109425705,0.1248241,112100.0,112090.0,0.38188725]
[1759109425911,0.1248241,112100.0,112090.0,0.38288725]
[1759109427215,0.1248241,112100.0,112090.0,0.38388725]
[1759109427399,0.1248241,112100.0,112090.0,0.37058725]
[1759109427604,0.50730411,112100.0,112090.0,0.37058725]
[1759109429312,0.50730248,112100.0,112090.0,0.02371]
[1759109429512,0.50730248,112100.0,112090.0,0.28141925]
[1759109430612,0.50730248,112100.0,112090.0,0.37059135]
[1759109431014,1.33178248,112100.0,112090.0,0.37059135]
[1759109431312,0.50730248,112100.0,112090.0,0.37059135]
[1759109431510,0.50730248,112100.0,112090.0,0.1128821]
[1759109431717,1.34067956,112100.0,112090.0,0.37059135]
[1759109432407,1.34067956,112100.0,112090.0,0.1128821]
[1759109432613,1.74067956,112100.0,112090.0,0.37059135]
[1759109433115,1.74051956,112100.0,112090.0,0.1128821]
[1759109433313,1.74051956,112100.0,112090.0,0.37059135]
[1759109433909,0.90730248,112100.0,112090.0,0.0911721]
[1759109434107,0.90730248,112100.0,112090.0,0.37059135]
[1759109434304,1.73202248,112100.0,112090.0,0.37059135]
[1759109434618,0.90730248,112100.0,112090.0,0.37059135]
[1759109434808,1.73194248,112100.0,112090.0,0.1128821]
[1759109435008,0.90730248,112100.0,112090.0,0.37059135]
[1759109435304,1.73186248,112100.0,112090.0,0.37059135]
[1759109435504,0.90730248,112100.0,112090.0,0.37059135]
[1759109435804,1.73186248,112100.0,112090.0,0.37059135]
[1759109436620,0.90730248,112100.0,112090.0,0.37059135]
[1759109436910,1.73186248,112100.0,112090.0,0.37059135]
[1759109437313,1.73174248,112100.0,112090.0,0.37059135]
[1759109438518,0.90730248,112100.0,112090.0,0.37059135]
[1759109438716,1.73166248,112100.0,112090.0,0.37059135]
[1759109439521,1.33166248,112100.0,112090.0,0.37059135]
[1759109440218,1.33166248,112100.0,112090.0,0.28141925]
[1759109440420,1.33150248,112100.0,112090.0,0.37059135]
[1759109440711,1.33150248,112100.0,112090.0,0.28141925]
[1759109441020,1.33150248,112100.0,112090.0,0.02371]
[1759109442118,1.33150248,112100.0,112090.0,0.28141925]
[1759109442925,1.33150248,112100.0,112090.0,0.02371]
[1759109443123,1.33150248,112100.0,112090.0,0.28141925]
[1759109443321,1.58921173,112100.0,112090.0,0.28141925]
[1759109443522,1.58921173,112100.0,112090.0,0.002]
[1759109443922,1.33150248,112100.0,112090.0,0.002]
[1759109445718,1.33150248,112100.0,112090.0,0.02371]
[1759109446117,0.50730248,112100.0,112090.0,0.02371]
[1759109446420,1.33054248,112100.0,112090.0,0.02371]
[1759109446721,0.50730248,112100.0,112090.0,0.02371]
[1759109446916,1.33054248,112100.0,112090.0,0.02371]
[1759109447118,1.33046248,112100.0,112090.0,0.37059135]
[1759109448122,1.33042248,112100.0,112090.0,0.37059135]
[1759109449523,1.33042248,112100.0,112090.0,0.1128821]
[1759109449714,1.33042248,112100.0,112090.0,0.37059135]
[1759109450225,1.3088241,112100.0,112090.0,0.37059135]
[1759109450424,1.33048183,112100.0,112090.0,0.37059135]
[1759109451219,1.33048183,112100.0,112090.0,0.1128821]
[1759109451425,1.33024183,112100.0,112090.0,0.37059135]
[1759109453330,0.53934758,112100.0,112090.0,0.37059135]
[1759109453530,1.36210758,112100.0,112090.0,0.37059135]
[1759109455236,1.36178758,112100.0,112090.0,0.37059135]
[1759109455626,0.53934758,112100.0,112090.0,0.37059135]
[1759109455829,1.36146758,112100.0,112090.0,0.37059135]
[1759109456735,0.53934758,112100.0,112090.0,0.37059135]
[1759109456932,0.50728183,112100.0,112090.0,0.38453135]
[1759109457134,1.32920183,112100.0,112090.0,0.38453135]
[1759109457326,0.50728183,112100.0,112090.0,0.38453135]
[1759109457530,1.32920183,112100.0,112090.0,0.38453135]
[1759109458829,1.36126758,112100.0,112090.0,0.38453135]
[1759109460234,1.32920183,112100.0,112090.0,0.38453135]
[1759109460435,0.49429183,112100.0,112090.0,0.38453135]
[1759109460638,1.22656773,112100.0,112090.0,0.38453135]
[1759109461328,0.04432773,112100.0,112090.0,0.38453135]
[1759109461527,0.04432773,112100.0,112090.0,0.78453135]
[1759109461528,0.86576773,112100.0,112090.0,0.78453135]
[1759109461734,0.04432773,112100.0,112090.0,0.78453135]
[1759109462932,0.02165773,112100.0,112090.0,0.78453135]
[1759109464743,0.02165773,112100.0,112090.0,1.14533135]
[1759109464936,0.02165773,112100.0,112090.0,1.32453135]
[1759109466236,0.3834943,112110.0,112100.0,0.1254341]
[1759109466434,0.40512108,112110.0,112100.0,0.38314335]
[1759109468134,0.40712108,112110.0,112100.0,0.38314335]
[1759109470430,0.04632108,112110.0,112100.0,0.38314335]
[1759109472241,0.02370108,112110.0,112100.0,0.38314335]
[1759109474147,0.04632108,112110.0,112100.0,0.38314335]
[1759109474333,0.04632108,112110.0,112100.0,0.6410373]
[1759109478249,0.02370108,112110.0,112100.0,0.6410373]
[1759109481751,0.02370108,112110.0,112100.0,1.0018373]
[1759109482644,0.0020743,112110.0,112100.0,1.6596389]
[1759109483048,0.0020743,112110.0,112100.0,2.4809189]
[1759109483251,0.0020743,112110.0,112100.0,1.73134606]
[1759109483451,0.0020743,112110.0,112100.0,2.55262606]
[1759109483649,0.02369204,112110.0,112100.0,2.55262606]
[1759109487156,0.39286575,112130.0,112120.0,0.03561]
[1759109487345,0.39286575,112130.0,112120.0,0.5512132]
[1759109487544,0.39286575,112130.0,112120.0,1.3724132]
[1759109487750,0.39286575,112130.0,112120.0,1.4615614]
[1759109487958,0.46326542,112140.0,112130.0,0.1247502]
[1759109488157,0.46326542,112140.0,112130.0,0.6403534]
[1759109488755,0.41541575,112140.0,112130.0,0.6403534]
[1759109488954,0.38335,112140.0,112130.0,0.6403534]
[1759109489959,0.4853523,112140.0,112130.0,0.3698618]
[1759109490361,0.4913523,112140.0,112130.0,0.3825518]
[1759109490659,0.5003523,112140.0,112130.0,0.3825518]
[1759109491551,0.5003523,112140.0,112130.0,0.1247502]
[1759109491756,0.5003523,112140.0,112130.0,0.3825518]
[1759109491947,0.5003523,112140.0,112130.0,0.1247502]
[1759109492150,0.5003523,112140.0,112130.0,0.3825518]
[1759109493059,0.39835,112140.0,112130.0,0.3825518]
[1759109493262,0.39835,112140.0,112130.0,0.1247502]
[1759109493450,0.39835,112140.0,112130.0,0.3825518]
[1759109497760,0.39835,112140.0,112130.0,0.1247502]
[1759109497963,0.39835,112140.0,112130.0,0.3825518]
[1759109498459,0.4874823,112140.0,112130.0,0.3825518]
[1759109499157,0.50896652,112140.0,112130.0,0.3825518]
[1759109501962,0.41983422,112140.0,112130.0,0.3825518]
[1759109517969,0.41983422,112140.0,112130.0,0.1247502]
[1759109518275,1.18043812,112140.0,112130.0,0.3698618]
[1759109518462,1.21250387,112140.0,112130.0,0.3698618]
[1759109518666,1.26035354,112140.0,112130.0,0.3698618]
[1759109519372,1.21250387,112140.0,112130.0,0.3698618]
[1759109520675,0.95470227,112140.0,112130.0,0.3698618]
[1759109520875,1.21250387,112140.0,112130.0,0.3698618]
[1759109521077,2.03334387,112140.0,112130.0,0.3698618]
[1759109521776,1.77554227,112140.0,112130.0,0.3698618]
[1759109521973,2.03334387,112140.0,112130.0,0.3698618]
[1759109524679,1.77554227,112140.0,112130.0,0.1120602]
[1759109524877,2.03334387,112140.0,112130.0,0.3698618]
[1759109525378,1.21250387,112140.0,112130.0,0.3698618]
[1759109525677,2.03326387,112140.0,112130.0,0.3698618]
[1759109528780,0.01367,112130.0,112120.0,0.0891404]
[1759109528980,0.70721157,112130.0,112120.0,0.369592]
[1759109529578,0.79635427,112130.0,112120.0,0.6273936]
[1759109529979,0.80035427,112130.0,112120.0,0.6273936]
[1759109530181,0.42134422,112130.0,112120.0,0.6273936]
[1759109530374,1.22839422,112130.0,112120.0,0.6408136]
[1759109530582,0.04690446,112130.0,112120.0,1.0016136]
[1759109530782,0.04690446,112130.0,112120.0,1.6594152]
[1759109530783,0.02551446,112130.0,112120.0,1.6594152]
[1759109531186,0.03251446,112130.0,112120.0,2.4801352]
[1759109534193,0.03251446,112130.0,112120.0,1.96440028]
[1759109543597,0.03251446,112130.0,112120.0,1.96424028]
[1759109543897,0.03251446,112130.0,112120.0,1.96420028]
[1759109545487,0.011,112130.0,112120.0,1.96420028]
[1759109548000,0.011,112130.0,112120.0,2.14340028]
[1759109548799,0.011,112130.0,112120.0,2.40107016]
[1759109550803,0.011,112130.0,112120.0,2.14340028]
[1759109552500,0.011,112130.0,112120.0,1.32288028]
[1759109552803,0.011,112130.0,112120.0,2.14324028]
[1759109554005,0.011,112130.0,112120.0,2.14320028]
[1759109554707,0.011,112130.0,112120.0,1.0652104]
[1759109554906,0.011,112130.0,112120.0,2.14320028]
[1759109556509,0.011,112130.0,112120.0,1.32288028]
[1759109556708,0.011,112130.0,112120.0,1.78236028]
[1759109556911,0.011,112130.0,112120.0,0.74368028]
[1759109557203,0.03228,112130.0,112120.0,1.56396028]
[1759109557409,0.0537082,112130.0,112120.0,0.74368028]
[1759109557609,0.0537082,112130.0,112120.0,1.56396028]
[1759109558508,0.0537082,112130.0,112120.0,1.20316028]
[1759109561505,0.0537082,112130.0,112120.0,0.38288028]
[1759109561710,0.0668182,112130.0,112120.0,1.20312028]
[1759109564306,0.0537082,112130.0,112120.0,1.20312028]
[1759109565811,0.0537082,112130.0,112120.0,0.38288028]
[1759109566009,0.0668182,112130.0,112120.0,1.20308028]
[1759109566210,0.4276182,112130.0,112120.0,1.20308028]
[1759109570516,0.9167584,112130.0,112120.0,1.18966028]
[1759109570813,0.8276182,112130.0,112120.0,1.18966028]
[1759109572117,0.9167584,112130.0,112120.0,1.18966028]
[1759109572717,0.9167584,112130.0,112120.0,0.36946028]
[1759109573415,0.94882415,112130.0,112120.0,0.36946028]
[1759109576612,0.58802415,112130.0,112120.0,0.36946028]
[1759109576812,0.94882415,112130.0,112120.0,0.36946028]
[1759109580520,0.9579523,112130.0,112120.0,0.36946028]
[1759109580821,0.94882415,112130.0,112120.0,0.36946028]
[1759109581519,1.76882415,112130.0,112120.0,0.36946028]
[1759109582124,1.67968395,112130.0,112120.0,0.36946028]
[1759109582922,0.85968395,112130.0,112120.0,0.36946028]
[1759109583331,0.0537082,112130.0,112120.0,0.64050016]
[1759109583519,0.0324282,112130.0,112120.0,1.40130016]
[1759109583826,0.38368,112150.0,112140.0,0.1238222]
[1759109584122,0.38368,112150.0,112140.0,0.63916196]
[1759109584123,0.40510994,112150.0,112140.0,0.63916196]
[1759109584922,0.40510994,112150.0,112140.0,0.64821528]
[1759109586522,0.41210994,112150.0,112140.0,0.64821528]
[1759109586824,0.42210994,112150.0,112140.0,0.64821528]
[1759109587928,0.42210994,112150.0,112140.0,0.13287552]
[1759109588228,0.52391354,112150.0,112140.0,0.36812208]
[1759109590318,0.43478994,112150.0,112140.0,0.36812208]
[1759109595328,0.52391424,112150.0,112140.0,0.0891322]
[1759109595530,0.95597999,112150.0,112140.0,0.34680208]
[1759109595827,0.95597999,112150.0,112140.0,0.0891322]
[1759109596225,1.21370496,112150.0,112140.0,0.34685717]
[1759109596826,1.21370496,112150.0,112140.0,0.36786717]
[1759109597331,1.21370496,112150.0,112140.0,0.0891322]
[1759109597527,1.21370496,112150.0,112140.0,0.34685717]
[1759109597722,1.26155463,112150.0,112140.0,0.34685717]
[1759109597928,1.21370496,112150.0,112140.0,0.34685717]
[1759109598225,0.1024922,112140.0,112130.0,0.1101448]
[1759109598532,1.32540214,112140.0,112130.0,0.36786977]
[1759109599621,1.33240214,112140.0,112130.0,0.36786977]
[1759109600335,1.33740214,112140.0,112130.0,0.36786977]
[1759109600535,2.02719286,112140.0,112130.0,0.36786977]
[1759109601338,1.76946789,112140.0,112130.0,0.36786977]
[1759109601838,1.76946789,112140.0,112130.0,0.1101448]
[1759109602030,1.76946789,112140.0,112130.0,0.36786977]
[1759109602229,1.77840122,112140.0,112130.0,0.36786977]
[1759109604033,1.74633547,112140.0,112130.0,0.36786977]
[1759109604539,2.00406044,112140.0,112130.0,0.34685977]
[1759109606043,2.03612619,112140.0,112130.0,0.34685977]
[1759109606841,2.03612619,112140.0,112130.0,0.25772497]
[1759109608143,0.1235002,112130.0,112120.0,0.36821757]
[1759109608440,0.50573014,112130.0,112120.0,0.62594254]
[1759109609248,0.50973014,112130.0,112120.0,0.62594254]
[1759109609745,0.51273014,112130.0,112120.0,0.62594254]
[1759109611946,1.33225014,112130.0,112120.0,0.63979254]
[1759109612146,1.33225014,112130.0,112120.0,0.62594254]
[1759109612348,1.33211682,112130.0,112120.0,0.62594254]
[1759109616345,1.33211682,112130.0,112120.0,0.1104926]
[1759109616554,1.33211682,112130.0,112120.0,0.62594254]
[1759109617342,1.33211682,112130.0,112120.0,0.1104926]
[1759109617541,1.33211682,112130.0,112120.0,0.62594254]
[1759109618553,0.51259682,112130.0,112120.0,0.62594254]
[1759109618746,0.04929662,112130.0,112120.0,0.63979254]
[1759109619147,0.04929662,112130.0,112120.0,1.03979254]
[1759109619450,0.02829662,112130.0,112120.0,1.29751751]
[1759109620154,0.02829662,112130.0,112120.0,1.03979254]
[1759109620450,0.04929662,112130.0,112120.0,0.63979254]
[1759109620651,0.02829662,112130.0,112120.0,0.63979254]
[1759109620953,0.04929662,112130.0,112120.0,1.00059254]
[1759109622853,0.02829662,112130.0,112120.0,1.00059254]
[1759109623254,0.06036237,112130.0,112120.0,1.45915254]
[1759109623456,0.08136237,112130.0,112120.0,1.45915254]
[1759109624460,0.17050257,112130.0,112120.0,0.63979254]
[1759109624758,0.08136237,112130.0,112120.0,1.45915254]
[1759109625156,0.08136237,112130.0,112120.0,0.63979254]
[1759109625450,0.08136237,112130.0,112120.0,1.45915254]
[1759109627855,0.44216237,112130.0,112120.0,1.45915254]
[1759109629959,0.44216237,112130.0,112120.0,1.45911254]
[1759109630263,0.44216237,112130.0,112120.0,0.63979254]
[1759109630459,0.53130257,112130.0,112120.0,0.63979254]
[1759109630664,0.54528257,112130.0,112120.0,1.45907254]
[1759109631164,0.53130257,112130.0,112120.0,1.45907254]
[1759109633062,0.44216237,112130.0,112120.0,1.45907254]
[1759109633262,0.41009662,112130.0,112120.0,1.45907254]
[1759109634363,0.49923682,112130.0,112120.0,1.45907254]
[1759109636063,0.41009662,112130.0,112120.0,1.45907254]
[1759109636263,0.41009662,112130.0,112120.0,1.45895254]
[1759109636964,0.41009662,112130.0,112120.0,0.63979254]
[1759109637158,0.41009662,112130.0,112120.0,1.45895254]
[1759109637464,0.49923682,112130.0,112120.0,0.63979254]
[1759109637667,0.49923682,112130.0,112120.0,1.45895254]
[1759109637966,0.49923682,112130.0,112120.0,0.9435026]
[1759109638162,0.49923682,112130.0,112120.0,1.45895254]